bitfinex/quotes_SOLUSD_20250922
["timestamp","ask_amount","ask_price","bid_price","bid_amount"]
[1758566655032,134.87,220.75,220.73,13.59559401]
[1758566655246,134.2,220.75,220.73,1.8087653]
[1758566655447,0.67,220.8,220.75,13.59559401]
[1758566655749,4.49412981,220.82,220.78,13.59559401]
[1758566656049,0.67,220.79,220.77,13.59559401]
[1758566656634,0.67,220.79,220.77,18.12514582]
[1758566657215,28.4787653,220.81,220.77,18.12514582]
[1758566657415,0.67,220.8,220.77,18.12514582]
[1758566659543,1.8087653,220.83,220.77,18.12514582]
[1758566659838,1.80332011,220.82,220.77,18.12514582]
[1758566660048,0.67,220.81,220.77,18.12514582]
[1758566660636,1.13331987,220.82,220.77,18.12514582]
[1758566660837,134.2,220.82,220.78,0.4]
[1758566661239,134.2,220.82,220.78,2.2087653]
[1758566661637,134.87,220.82,220.78,6.33804753]
[1758566662250,134.87,220.82,220.78,4.52928223]
[1758566662443,134.87,220.82,220.78,6.33804753]
[1758566663628,0.67,220.81,220.78,6.33804753]
[1758566663949,0.67,220.8,220.78,34.92]
[1758566664115,2.4787653,220.79,220.77,13.59559401]
[1758566664314,2.4787653,220.78,220.73,34.92]
[1758566664537,1.8087653,220.76,220.73,34.92]
[1758566664743,0.67,220.75,220.73,34.92]
[1758566665735,0.67,220.75,220.74,13.59559401]
[1758566665927,1.8087653,220.75,220.74,13.59559401]
[1758566666444,2.4787653,220.75,220.7,13.59559401]
[1758566666641,15.85288521,220.78,220.7,13.59559401]
[1758566666642,1.8087653,220.73,220.7,13.59559401]
[1758566666825,0.67,220.72,220.7,13.59559401]
[1758566667026,0.67,220.71,220.7,13.59559401]
[1758566667640,1.8087653,220.72,220.7,13.59559401]
[1758566667849,0.7,220.72,220.7,13.59559401]
[1758566670029,0.7,220.71,220.7,34.92]
[1758566670640,2.5087653,220.71,220.66,13.79559401]
[1758566670853,0.7,220.7,220.67,34.92]
[1758566674654,134.2,220.72,220.69,1.8087653]
[1758566674832,134.2,220.72,220.71,13.59559401]
[1758566676246,134.9,220.72,220.71,13.59559401]
[1758566676956,141.23939233,220.72,220.68,13.59559401]
[1758566677246,1.8087653,220.7,220.68,48.49559401]
[1758566677435,0.7,220.69,220.68,48.49559401]
[1758566678559,0.7,220.69,220.68,48.51559401]
[1758566678928,5.23124291,220.69,220.66,0.2]
[1758566679128,134.2,220.68,220.67,48.51559401]
[1758566679348,134.9,220.68,220.67,48.51559401]
[1758566679660,0.7,220.68,220.67,13.59559401]
[1758566679835,26.0,220.67,220.66,0.2]
[1758566680146,33.0404189,220.67,220.66,0.2]
[1758566685479,26.7,220.67,220.66,0.2]
[1758566686340,31.2316536,220.67,220.66,0.2]
[1758566686765,44.3695529,220.67,220.63,0.2]
[1758566687061,1.8087653,220.64,220.63,0.2]
[1758566687435,7.04103506,220.64,220.63,0.2]
[1758566688557,8.05966554,220.64,220.63,0.2]
[1758566689059,8.05966554,220.64,220.58,19.84445585]
[1758566689060,26.0,220.61,220.58,6.24886184]
[1758566689242,2.82739578,220.59,220.56,0.1]
[1758566689552,7.36110389,220.57,220.56,0.1]
[1758566689746,46.90832566,220.57,220.56,0.1]
[1758566689946,47.60832566,220.57,220.56,0.1]
[1758566693353,50.43572144,220.57,220.56,0.1]
[1758566694762,15.37572144,220.57,220.56,0.1]
[1758566694969,50.41572144,220.57,220.56,0.1]
[1758566695153,47.58832566,220.57,220.56,0.1]
[1758566695356,12.54832566,220.57,220.56,0.1]
[1758566695547,47.58832566,220.57,220.56,0.1]
[1758566695747,12.54832566,220.57,220.56,0.1]
[1758566695965,26.0,220.54,220.51,0.2003]
[1758566696168,2.82739578,220.52,220.51,0.2003]
[1758566696555,3.52739578,220.52,220.51,0.2003]
[1758566696775,26.0,220.54,220.51,0.2003]
[1758566696959,2.82739578,220.52,220.51,0.2003]
[1758566697849,7.36213185,220.52,220.51,0.2003]
[1758566699655,8.05213185,220.52,220.51,0.2003]
[1758566701980,2.82739578,220.52,220.51,14.49589401]
[1758566702276,33.36197355,220.53,220.51,13.79589401]
[1758566702459,2.82739578,220.52,220.51,13.79589401]
[1758566702666,2.82739578,220.52,220.51,0.2003]
[1758566702881,3.51739578,220.52,220.51,0.2003]
[1758566703049,29.51739578,220.52,220.51,0.2003]
[1758566703658,34.05213185,220.52,220.51,0.2003]
[1758566703854,34.05213185,220.52,220.51,1e-08]
[1758566703855,35.18709463,220.52,220.51,1e-08]
[1758566704051,84.94755122,220.52,220.48,0.2]
[1758566704273,28.82739578,220.49,220.48,0.2]
[1758566704467,68.38597496,220.49,220.48,0.2]
[1758566704872,69.07597496,220.49,220.48,0.2]
[1758566705172,108.50984882,220.49,220.32,11.34673498]
[1758566705479,2.82739578,220.39,220.38,0.7]
[1758566705860,2.82739578,220.4,220.38,0.7]
[1758566706672,2.82739578,220.39,220.32,13.59559401]
[1758566706849,2.82739578,220.37,220.35,13.59559401]
[1758566707055,2.82739578,220.36,220.35,13.79559401]
[1758566707469,2.82739578,220.38,220.35,13.79559401]
[1758566707677,2.82739578,220.39,220.36,0.7]
[1758566708172,2.82739578,220.38,220.36,0.7]
[1758566709749,12.03216769,220.42,220.34,18.13403433]
[1758566709750,0.69,220.42,220.34,18.13403433]
[1758566709955,26.0,220.43,220.37,0.7]
[1758566710170,26.69,220.43,220.37,0.7]
[1758566710376,2.82739578,220.41,220.37,0.7]
[1758566711180,26.0,220.43,220.39,13.59559401]
[1758566711355,2.82739578,220.42,220.39,14.29559401]
[1758566712258,2.82739578,220.42,220.39,13.59559401]
[1758566712485,134.89,220.44,220.32,13.51706862]
[1758566712486,134.2,220.44,220.41,13.59559401]
[1758566712780,134.2,220.44,220.42,0.7]
[1758566713177,3.66465329,220.51,220.43,17.12298979]
[1758566713178,13.59559401,220.51,220.43,17.12298979]
[1758566713381,1.13510843,220.5,220.47,2.82739578]
[1758566713556,2.82739578,220.56,220.5,13.59559401]
[1758566713759,1.13474986,220.55,220.51,0.7]
[1758566714084,1.13474986,220.54,220.52,0.7]
[1758566714264,4.53388806,220.57,220.52,0.7]
[1758566714461,1.13469899,220.56,220.53,0.7]
[1758566714791,1.13469899,220.55,220.54,0.7]
[1758566714964,3.96209477,220.58,220.54,0.7]
[1758566715277,1.13469899,220.57,220.54,0.7]
[1758566715482,1.13456289,220.56,220.54,13.59559401]
[1758566715658,28.82739578,220.59,220.54,13.59559401]
[1758566715860,1.13456489,220.58,220.55,0.66]
[1758566716058,1.13456489,220.57,220.53,21.61743757]
[1758566716277,7.36050162,220.6,220.54,3.48739578]
[1758566716485,26.0,220.58,220.54,3.48739578]
[1758566716777,35.18,220.62,220.53,18.13004179]
[1758566716778,2.82739578,220.64,220.57,2.82739578]
[1758566716962,2.82739578,220.64,220.58,17.08298979]
[1758566716963,4.46004617,220.63,220.58,17.08298979]
[1758566717165,2.82739578,220.64,220.56,13.59559401]
[1758566717166,28.82739578,220.61,220.56,13.59559401]
[1758566717471,1.13445321,220.6,220.58,13.59559401]
[1758566717663,1.13445321,220.59,220.58,13.59559401]
[1758566717977,0.7,220.68,220.6,13.59559401]
[1758566718280,1.13432259,220.67,220.64,13.59559401]
[1758566718480,1.13432259,220.67,220.58,0.66]
[1758566718481,2.82739578,220.65,220.58,0.66]
[1758566718652,2.82739578,220.6,220.55,0.66]
[1758566718855,1.13437079,220.59,220.57,13.59559401]
[1758566719082,1.13437079,220.58,220.57,14.25559401]
[1758566719262,1.13437079,220.6,220.57,14.25559401]
[1758566719476,1.13437079,220.59,220.57,14.25559401]
[1758566719675,1.13437079,220.58,220.56,13.59559401]
[1758566719980,1.13447471,220.57,220.54,13.59559401]
[1758566720183,2.82739578,220.6,220.56,13.59559401]
[1758566720360,1.13450731,220.59,220.56,13.59559401]
[1758566720562,1.13450731,220.58,220.56,13.59559401]
[1758566720777,1.13450731,220.57,220.56,13.59559401]
[1758566721278,1.13450731,220.6,220.56,13.59559401]
[1758566721486,1.13450731,220.59,220.56,13.59559401]
[1758566721662,1.13450731,220.58,220.56,13.59559401]
[1758566721870,1.13450731,220.57,220.56,16.42298979]
[1758566722259,1.13450731,220.6,220.56,17.08298979]
[1758566722474,1.13450731,220.59,220.57,0.66]
[1758566722659,4.53288911,220.61,220.58,13.59559401]
[1758566722971,7.29704587,220.6,220.55,14.25559401]
[1758566723169,2.82739578,220.59,220.55,0.66]
[1758566723380,1.13449595,220.58,220.55,0.66]
[1758566723579,1.13449595,220.57,220.55,0.66]
[1758566723777,7.36088123,220.59,220.55,0.66]
[1758566723973,1.13450649,220.58,220.55,0.66]
[1758566724182,1.13450649,220.57,220.55,0.66]
[1758566724402,2.82739578,220.6,220.53,20.95747911]
[1758566724587,1.13450649,220.59,220.55,13.59559401]
[1758566724783,1.13450649,220.58,220.57,13.59559401]
[1758566725089,1.13450649,220.58,220.56,0.66]
[1758566725268,1.13450649,220.57,220.56,14.25559401]
[1758566725789,1.13450649,220.57,220.56,13.59559401]
[1758566727589,5.6682146,220.57,220.56,13.59559401]
[1758566727881,9.19561038,220.57,220.52,13.59559401]
[1758566728070,2.82739578,220.55,220.5,13.59559401]
[1758566728266,1.13450649,220.54,220.5,13.59559401]
[1758566728476,1.13450649,220.53,220.5,13.59559401]
[1758566728679,2.82739578,220.55,220.5,13.59559401]
[1758566728895,1.13466682,220.54,220.5,13.59559401]
[1758566729072,1.13466682,220.53,220.5,14.29559401]
[1758566729272,4.53445601,220.54,220.5,14.29559401]
[1758566729473,1.13466706,220.53,220.5,14.29559401]
[1758566729672,134.2,220.58,220.52,16.42298979]
[1758566729883,4.47912749,220.57,220.54,13.59559401]
[1758566730074,1.13464885,220.56,220.54,13.59559401]
[1758566730284,1.13464885,220.55,220.52,16.42298979]
[1758566730469,142.26097012,220.58,220.53,13.59559401]
[1758566730789,4.66198282,220.57,220.52,13.59559401]
[1758566730989,1.13458704,220.56,220.52,13.59559401]
[1758566731187,1.13458704,220.55,220.52,13.59559401]
[1758566731392,1.13458704,220.54,220.5,0.7]
[1758566731599,1.13458704,220.53,220.51,14.29559401]
[1758566731790,4.53427701,220.55,220.51,17.12298979]
[1758566731974,1.13462771,220.54,220.51,17.12298979]
[1758566732175,1.13462771,220.53,220.51,16.42298979]
[1758566732376,134.2,220.58,220.52,3.52739578]
[1758566732680,1.1345869,220.57,220.55,13.59559401]
[1758566732877,1.1345869,220.56,220.55,14.29559401]
[1758566733485,1.1345869,220.56,220.55,13.59559401]
[1758566733796,1.1345869,220.56,220.53,17.12298979]
[1758566733990,1.1345869,220.55,220.53,17.12298979]
[1758566734202,138.73350886,220.58,220.53,17.12298979]
[1758566734394,1.13455595,220.57,220.53,17.12298979]
[1758566734586,1.13455595,220.56,220.55,13.59559401]
[1758566735681,1.13455595,220.56,220.55,17.12298979]
[1758566736093,1.13455595,220.56,220.55,21.65710903]
[1758566736276,134.2,220.58,220.55,21.65710903]
[1758566736479,134.2,220.58,220.56,0.7]
[1758566736480,1.13449649,220.57,220.56,0.7]
[1758566736982,134.2,220.58,220.57,13.59559401]
[1758566737382,26.7,220.62,220.57,13.59559401]
[1758566737583,6.36732351,220.61,220.57,13.59559401]
[1758566737778,1.13442655,220.6,220.57,13.59559401]
[1758566737980,1.13442655,220.59,220.57,17.12298979]
[1758566738179,31.23269823,220.62,220.57,17.12298979]
[1758566738380,1.13442499,220.61,220.57,17.12298979]
[1758566738695,1.13442499,220.6,220.57,13.59559401]
[1758566739205,1.13442499,220.6,220.56,13.59559401]
[1758566739501,6.36790191,220.59,220.56,13.59559401]
[1758566739703,1.83442499,220.58,220.53,13.59559401]
[1758566739901,1.83442499,220.58,220.55,13.59559401]
[1758566740289,0.7,220.57,220.55,13.59559401]
[1758566740488,1.13442499,220.58,220.53,13.59559401]
[1758566740689,0.7,220.56,220.53,13.59559401]
[1758566741006,0.7,220.55,220.53,48.83559401]
[1758566741504,164.73395502,220.56,220.53,48.83559401]
[1758566741691,165.43395502,220.56,220.53,48.83559401]
[1758566741908,164.73395502,220.56,220.51,13.59559401]
[1758566742085,0.7,220.55,220.51,13.59559401]
[1758566742407,0.7,220.55,220.51,48.83559401]
[1758566743101,164.73395502,220.56,220.51,49.53559401]
[1758566743300,165.43395502,220.56,220.51,49.53559401]
[1758566743894,160.2,220.56,220.52,0.7]
[1758566744408,134.2,220.56,220.53,13.59559401]
[1758566744609,134.2,220.56,220.53,14.29559401]
[1758566744805,134.2,220.56,220.54,14.29559401]
[1758566744984,134.2,220.56,220.54,17.12298979]
[1758566745183,134.2,220.56,220.54,14.29559401]
[1758566745384,134.2,220.56,220.54,13.59559401]
[1758566745993,134.2,220.56,220.53,13.59559401]
[1758566746193,134.9,220.56,220.51,20.84379975]
[1758566746400,0.7,220.55,220.52,48.79559401]
[1758566748112,5.23413253,220.55,220.52,48.79559401]
[1758566749900,0.7,220.54,220.52,48.79559401]
[1758566750293,4.53413253,220.55,220.52,48.79559401]
[1758566750694,134.2,220.56,220.52,48.79559401]
[1758566750917,134.9,220.56,220.52,48.79559401]
[1758566751207,134.2,220.56,220.52,49.49559401]
[1758566751790,138.73395727,220.56,220.52,48.79559401]
[1758566751991,0.7,220.55,220.52,48.79559401]
[1758566752192,134.2,220.54,220.53,48.79559401]
[1758566754693,136.03462698,220.54,220.53,13.59559401]
[1758566754899,136.03462698,220.54,220.53,48.75559401]
[1758566755301,140.56895181,220.54,220.53,48.75559401]
[1758566755922,136.03462698,220.54,220.53,48.75559401]
[1758566756094,135.33462698,220.54,220.53,48.75559401]
[1758566758015,1.13462698,220.54,220.53,48.75559401]
[1758566760723,1.13462698,220.54,220.53,35.14]
[1758566760724,35.71490001,220.54,220.53,35.14]
[1758566761024,38.75158068,220.54,220.53,35.14]
[1758566761223,34.21725585,220.54,220.48,1.81055878]
[1758566761525,1.13462698,220.53,220.5,13.59559401]
[1758566761705,1.13462698,220.52,220.51,48.71559401]
[1758566762608,1.13462698,220.52,220.51,51.19615279]
[1758566762919,1.13462698,220.52,220.51,50.52615279]
[1758566763122,1.13462698,220.52,220.51,55.73109451]
[1758566763506,1.13462698,220.52,220.51,50.52615279]
[1758566763713,1.13462698,220.52,220.51,48.71559401]
[1758566764931,1.13462698,220.52,220.51,55.73109451]
[1758566765233,3.03646535,220.57,220.52,13.59559401]
[1758566765435,1.13451597,220.56,220.54,13.59559401]
[1758566765641,3.03646535,220.57,220.56,13.59559401]
[1758566765806,3.03646535,220.57,220.56,48.77559401]
[1758566765807,1.134515,220.57,220.56,48.77559401]
[1758566766139,4.51018498,220.57,220.56,48.77559401]
[1758566766334,6.41213533,220.57,220.56,48.77559401]
[1758566766629,3.03646535,220.59,220.56,48.77559401]
[1758566766832,3.03646535,220.59,220.56,50.58615279]
[1758566767025,29.03646535,220.59,220.56,50.58615279]
[1758566767234,0.67,220.59,220.56,48.77559401]
[1758566767432,7.0838399,220.59,220.56,48.77559401]
[1758566767629,3.70815486,220.59,220.56,48.77559401]
[1758566768343,8.2414901,220.59,220.56,48.77559401]
[1758566768516,5.20333524,220.59,220.56,48.77559401]
[1758566768836,5.20333524,220.59,220.55,1.81055878]
[1758566768837,2.48055878,220.58,220.57,35.16]
[1758566769035,34.89383565,220.58,220.49,13.95055919]
[1758566769210,1.81055878,220.55,220.5,48.75559401]
[1758566769411,4.84871364,220.56,220.5,48.75559401]
[1758566769733,0.67,220.55,220.5,48.75559401]
[1758566769925,31.51823094,220.54,220.52,13.59559401]
[1758566770232,5.20453044,220.53,220.52,48.75559401]
[1758566771016,5.20453044,220.53,220.52,13.59559401]
[1758566771213,7.01508922,220.53,220.47,14.42163749]
[1758566771520,3.77436725,220.58,220.51,13.59559401]
[1758566771725,7.08184624,220.57,220.55,13.59559401]
[1758566771939,7.08184624,220.57,220.55,48.83559401]
[1758566771940,6.41184624,220.56,220.55,48.83559401]
[1758566772734,3.37468669,220.56,220.55,48.83559401]
[1758566772937,7.08184624,220.56,220.55,48.83559401]
[1758566773120,6.41184624,220.56,220.55,48.83559401]
[1758566773718,11.61575991,220.56,220.55,48.83559401]
[1758566773919,8.57860036,220.56,220.55,48.83559401]
[1758566774229,8.57860036,220.56,220.53,13.59559401]
[1758566774230,11.61575991,220.56,220.53,13.59559401]
[1758566774436,5.20391367,220.56,220.55,13.59559401]
[1758566774625,8.57694729,220.56,220.55,13.59559401]
[1758566774940,13.42330405,220.56,220.53,35.24]
[1758566775121,7.1088316,220.55,220.52,35.24]
[1758566775322,8.91939038,220.54,220.52,35.24]
[1758566775529,2.51055878,220.54,220.52,35.24]
[1758566775724,2.51055878,220.54,220.48,13.59559401]
[1758566775725,0.7,220.53,220.48,13.59559401]
[1758566775925,0.7,220.53,220.4,11.34270473]
[1758566775926,2.51055878,220.52,220.45,6.3467144]
[1758566776135,4.53494172,220.51,220.46,48.83559401]
[1758566776440,5.23494172,220.51,220.46,49.48559401]
[1758566776622,5.23494172,220.51,220.44,13.86791725]
[1758566776623,136.71055878,220.5,220.44,13.86791725]
[1758566776832,4.84540125,220.49,220.45,48.85559401]
[1758566777032,3.73484247,220.49,220.45,48.85559401]
[1758566777426,0.7,220.49,220.45,48.85559401]
[1758566778339,4.53555878,220.48,220.45,48.85559401]
[1758566778558,4.53555878,220.48,220.39,4.53741095]
[1758566778725,134.9,220.47,220.43,13.59559401]
[1758566778922,134.9,220.47,220.41,0.65]
[1758566778923,134.9,220.47,220.45,13.59559401]
[1758566779843,15.87445573,220.48,220.42,13.59559401]
[1758566779844,26.0,220.45,220.42,13.59559401]
[1758566780050,0.7,220.44,220.42,13.59559401]
[1758566780257,4.53658757,220.43,220.42,13.59559401]
[1758566780626,5.23658757,220.43,220.42,13.59559401]
[1758566780940,0.7,220.43,220.42,13.59559401]
[1758566781143,2.51055878,220.45,220.42,13.59559401]
[1758566781347,5.23644099,220.44,220.42,13.59559401]
[1758566781554,2.51055878,220.43,220.39,13.59559401]
[1758566781749,1.81055878,220.4,220.32,0.65]
[1758566781933,2.51055878,220.4,220.33,50.66615279]
[1758566782130,0.7,220.4,220.34,1.81055878]
[1758566782453,4.53741095,220.39,220.34,1.81055878]
[1758566782661,4.53741095,220.39,220.34,2.46055878]
[1758566782844,0.7,220.4,220.34,2.46055878]
[1758566783025,5.23725027,220.4,220.35,35.26]
[1758566783342,5.23725027,220.4,220.36,13.59559401]
[1758566784124,26.0,220.41,220.36,18.13360716]
[1758566784329,26.0,220.42,220.38,13.59559401]
[1758566784541,26.7,220.42,220.38,13.59559401]
[1758566785126,26.0,220.42,220.38,13.59559401]
[1758566785340,26.0,220.42,220.39,0.65]
[1758566786038,26.0,220.42,220.38,50.66615279]
[1758566786358,26.0,220.43,220.4,13.59559401]
[1758566786654,134.2,220.46,220.38,53.39318859]
[1758566786655,134.2,220.46,220.42,13.59559401]
[1758566786839,134.2,220.46,220.45,15.40615279]
[1758566787041,134.2,220.46,220.45,13.59559401]
[1758566788149,138.73597024,220.46,220.45,13.59559401]
[1758566788653,140.54652902,220.46,220.45,13.59559401]
[1758566788869,141.25652902,220.46,220.45,13.59559401]
[1758566789161,26.0,220.44,220.38,0.66]
[1758566789333,27.81055878,220.44,220.42,13.59559401]
[1758566789533,26.0,220.44,220.4,13.59559401]
[1758566789734,26.0,220.44,220.4,13.75559401]
[1758566791151,30.53641595,220.44,220.4,13.75559401]
[1758566791359,30.53641595,220.44,220.4,13.09559401]
[1758566792641,30.53641595,220.44,220.4,13.75559401]
[1758566793352,0.71,220.43,220.4,13.09559401]
[1758566793533,0.71,220.42,220.4,13.09559401]
[1758566794051,6.34727748,220.43,220.4,13.09559401]
[1758566794572,30.53639599,220.44,220.4,13.09559401]
[1758566794739,31.24639599,220.44,220.4,13.09559401]
[1758566795153,33.05695477,220.44,220.4,13.09559401]
[1758566795354,30.53639599,220.44,220.4,13.75559401]
[1758566795945,136.01055878,220.46,220.42,13.59559401]
[1758566796154,136.01055878,220.46,220.42,49.49559401]
[1758566796545,134.2,220.45,220.42,49.49559401]
[1758566796972,134.2,220.45,220.42,48.83559401]
[1758566797152,134.2,220.45,220.43,0.66]
[1758566797343,134.2,220.44,220.42,48.83559401]
[1758566798864,134.2,220.44,220.42,49.49559401]
[1758566799053,134.2,220.44,220.42,48.83559401]
[1758566799737,139.44641814,220.44,220.43,48.81559401]
[1758566799937,138.73641814,220.44,220.43,48.81559401]
[1758566800140,138.73641814,220.44,220.43,13.59559401]
[1758566800365,139.44641814,220.44,220.42,13.59559401]
[1758566800540,2.52055878,220.43,220.42,13.59559401]
[1758566800751,0.71,220.43,220.42,13.59559401]
[1758566801450,7.05714635,220.43,220.34,0.66]
[1758566801637,136.01055878,220.42,220.37,13.59559401]
[1758566801963,0.71,220.41,220.38,35.24]
[1758566802573,0.71,220.4,220.38,35.24]
[1758566803140,4.53707473,220.41,220.38,35.24]
[1758566803650,5.24707473,220.41,220.38,35.24]
[1758566803860,138.7368031,220.42,220.38,35.24]
[1758566804162,139.4468031,220.42,220.38,35.24]
[1758566805267,2.52055878,220.41,220.38,35.24]
[1758566805565,0.71,220.41,220.38,35.24]
[1758566805745,2.52055878,220.41,220.38,35.24]
[1758566806748,140.54751979,220.42,220.39,13.59559401]
[1758566806945,0.71,220.41,220.28,0.1]
[1758566807167,15.87894449,220.42,220.33,13.59559401]
[1758566807168,1.81055878,220.36,220.33,13.59559401]
[1758566807549,2.52055878,220.36,220.33,13.59559401]
[1758566807757,0.71,220.36,220.33,13.59559401]
[1758566808062,1.81055878,220.37,220.33,13.59559401]
[1758566808268,2.52055878,220.37,220.33,13.59559401]
[1758566808561,26.0,220.38,220.34,2.47055878]
[1758566808765,26.0,220.38,220.36,13.59559401]
[1758566809472,30.53750428,220.39,220.36,13.59559401]
[1758566810460,0.71,220.43,220.37,0.66]
[1758566810650,2.83236157,220.42,220.39,13.59559401]
[1758566810850,3.54236157,220.42,220.39,13.59559401]
[1758566811050,29.54236157,220.42,220.39,13.59559401]
[1758566811251,26.71,220.42,220.39,13.59559401]
[1758566811675,31.24691654,220.42,220.39,13.59559401]
[1758566811850,34.07927811,220.42,220.39,13.59559401]
[1758566812855,34.07927811,220.42,220.24,0.66]
[1758566812856,26.0,220.38,220.24,0.66]
[1758566813064,2.83236157,220.31,220.25,2.83236157]
[1758566813270,2.83236157,220.32,220.25,7.37259277]
[1758566813472,2.83236157,220.32,220.26,13.59559401]
[1758566813770,0.71,220.31,220.26,13.59559401]
[1758566813955,3.54236157,220.31,220.26,13.59559401]
[1758566814661,8.08145542,220.31,220.26,18.13563486]
[1758566815278,8.08145542,220.31,220.26,13.59559401]
[1758566815572,26.0,220.33,220.27,2.83236157]
[1758566815751,0.71,220.37,220.3,16.42795558]
[1758566815952,7.37020636,220.37,220.3,17.08795558]
[1758566816250,2.83236157,220.36,220.3,14.25559401]
[1758566816446,3.54236157,220.35,220.29,13.59559401]
[1758566816677,2.83236157,220.34,220.29,13.59559401]
[1758566816864,8.08092112,220.34,220.29,13.59559401]
[1758566817061,2.83236157,220.33,220.29,13.59559401]
[1758566817268,8.08092112,220.34,220.29,14.31559401]
[1758566817469,7.37092112,220.34,220.29,14.31559401]
[1758566817881,7.37092112,220.34,220.29,18.85503037]
[1758566818455,2.83236157,220.3,220.28,0.1]
[1758566818862,2.83236157,220.29,220.28,0.1]
[1758566819266,3.54236157,220.29,220.28,0.1]
[1758566819783,8.08183226,220.29,220.28,0.1]
[1758566820878,5.24947069,220.29,220.28,0.1]
[1758566821064,8.08183226,220.29,220.28,0.1]
[1758566821785,0.71,220.34,220.28,0.1]
[1758566822016,2.83236157,220.32,220.28,0.82]
[1758566822175,3.54236157,220.32,220.28,0.1]
[1758566822695,6.60672882,220.44,220.28,0.1]
[1758566822696,3.54236157,220.36,220.3,16.42795558]
[1758566822861,2.83236157,220.37,220.3,17.14795558]
[1758566823186,26.0,220.36,220.3,17.14795558]
[1758566823483,2.83236157,220.37,220.3,17.14795558]
[1758566823665,0.71,220.36,220.3,16.42795558]
[1758566823867,4.53823462,220.35,220.3,17.14795558]
[1758566824067,4.53823462,220.35,220.31,3.55236157]
[1758566824268,30.53799374,220.37,220.31,3.55236157]
[1758566824468,30.53799374,220.37,220.32,13.59559401]
[1758566824671,5.24799374,220.37,220.32,13.59559401]
[1758566824877,5.24753617,220.39,220.34,16.42795558]
[1758566825180,4.53679339,220.42,220.36,16.42795558]
[1758566825368,5.24679339,220.42,220.36,16.42795558]
[1758566825565,31.24679339,220.42,220.36,16.42795558]
[1758566825966,31.24679339,220.42,220.36,13.59559401]
[1758566826171,31.24679339,220.42,220.36,16.42795558]
[1758566826586,31.24679339,220.42,220.36,20.5154257]
[1758566827966,30.53679339,220.42,220.38,13.59559401]
[1758566828168,6.91983169,220.48,220.41,20.5154257]
[1758566828385,1.13511466,220.47,220.44,13.59559401]
[1758566828572,5.24555878,220.48,220.44,13.59559401]
[1758566829084,4.53473607,220.52,220.47,6.91983169]
[1758566829388,0.71,220.55,220.49,20.5154257]
[1758566829682,26.0,220.53,220.49,20.5154257]
[1758566829892,0.71,220.55,220.51,13.59559401]
[1758566830072,4.53414029,220.55,220.51,13.59559401]
[1758566830277,1.13477355,220.54,220.51,13.59559401]
[1758566831269,4.53370811,220.57,220.51,13.59559401]
[1758566831586,26.0,220.55,220.51,20.5154257]
[1758566832292,26.0,220.55,220.51,13.59559401]
[1758566832472,4.53370811,220.57,220.52,14.31559401]
[1758566832792,4.53370811,220.57,220.52,13.59559401]
[1758566832989,1.84472306,220.56,220.5,13.59559401]
[1758566833180,6.91983169,220.54,220.47,49.01559401]
[1758566833382,4.53453044,220.53,220.47,13.59559401]
[1758566835084,31.24391335,220.57,220.52,13.59559401]
[1758566835670,30.53391335,220.57,220.51,13.59559401]
[1758566835981,4.53391335,220.57,220.52,7.63983169]
[1758566836184,4.53391335,220.57,220.53,0.68]
[1758566837182,5.24344921,220.59,220.53,6.91983169]
[1758566837384,26.0,220.58,220.55,13.59559401]
[1758566837776,12.22081015,220.64,220.57,13.59559401]
[1758566837996,1.13452221,220.63,220.59,6.91983169]
[1758566838176,0.2,220.64,220.6,14.27559401]
[1758566838505,4.73227267,220.64,220.6,13.59559401]
[1758566838801,0.2,220.64,220.59,13.59559401]
[1758566839004,0.2,220.64,220.6,0.68]
[1758566839174,0.2,220.64,220.6,7.59983169]
[1758566839374,0.69,220.63,220.61,13.59559401]
[1758566839595,4.73229828,220.64,220.61,13.59559401]
[1758566839805,4.73229828,220.64,220.59,13.59559401]
[1758566839989,0.69,220.63,220.59,13.59559401]
[1758566840594,5.22264269,220.63,220.59,13.59559401]
[1758566840902,5.22264269,220.63,220.58,20.5154257]
[1758566842176,0.69,220.62,220.57,13.59559401]
[1758566842379,6.91983169,220.62,220.55,7.59983169]
[1758566842582,7.60983169,220.61,220.56,13.59559401]
[1758566842783,7.60983169,220.61,220.55,13.59559401]
[1758566843592,11.45292325,220.6,220.55,13.59559401]
[1758566843790,0.69,220.59,220.55,13.59559401]